fUSD/lending_fUSD_20240116
["ID","MTS","AMOUNT","RATE_DAILY","PERIOD"]
[311743157,1705372247021,-500.0,0.00022171,2]
[311743158,1705372247030,-849.3,0.00022171,2]
[311743159,1705372247039,-500.0,0.00022171,2]
[311743160,1705372247049,-655.93,0.00022171,2]
[311743161,1705372247058,-732.2,0.00022171,2]
[311743162,1705372247068,-500.0,0.00022171,2]
[311743163,1705372247077,-500.0,0.00022171,2]
[311743164,1705372247086,-707.03,0.00022171,2]
[311743165,1705372247095,-500.41,0.00022171,2]
[311743166,1705372247105,-500.0,0.00022171,2]
[311743167,1705372247114,-500.0,0.00022171,2]
[311743168,1705372247124,-1180.98,0.00022171,2]
[311743169,1705372247133,-500.0,0.00022171,2]
[311743170,1705372247142,-500.0,0.00022171,2]
[311743171,1705372247152,-500.0,0.00022171,2]
[311743172,1705372247161,-536.13,0.00022171,2]
[311743173,1705372247171,-500.98,0.00022171,2]
[311743174,1705372247180,-644.08,0.00022171,2]
[311743175,1705372247190,-646.27,0.00022171,2]
[311743176,1705372247200,-500.0,0.00022171,2]
[311743177,1705372247209,-633.07,0.00022171,2]
[311743178,1705372247218,-500.0,0.00022171,2]
[311743179,1705372247227,-724.16,0.00022171,2]
[311743180,1705372247237,-1235.82,0.00022171,2]
[311743181,1705372247247,-500.0,0.00022171,2]
[311743182,1705372247256,-1242.22,0.00022171,2]
[311743183,1705372247265,-539.58,0.00022171,2]
[311743184,1705372247274,-500.0,0.00022171,2]
[311743185,1705372247284,-652.33,0.00022171,2]
[311743186,1705372247293,-800.24,0.00022171,2]
[311743187,1705372247302,-623.48,0.00022171,2]
[311743188,1705372247311,-665.35,0.00022171,2]
[311743189,1705372247320,-680.72,0.00022171,2]
[311743190,1705372247330,-500.0,0.00022171,2]
[311743191,1705372247339,-500.0,0.00022171,2]
[311743192,1705372247349,-500.0,0.00022171,2]
[311743193,1705372247358,-656.33,0.00022171,2]
[311743194,1705372247368,-500.0,0.00022171,2]
[311743195,1705372247377,-654.38,0.00022171,2]
[311743196,1705372247386,-183.81,0.00022171,2]
[311743197,1705372247395,-387.19676956,0.00022171,2]
[311743198,1705372247405,-500.0,0.00022171,2]
[311743199,1705372247414,-300.45949591,0.00022172,2]
[311743200,1705372247423,-208.43803052,0.00022172,2]
[311743201,1705372247667,-171.56690832,0.00022172,7]
[311743202,1705372247676,-500.0,0.00022172,2]
[311743203,1705372247685,-500.0,0.00022172,2]
[311743204,1705372247694,-500.0,0.00022172,2]
[311743205,1705372247703,-635.65,0.00022172,2]
[311743206,1705372247713,-500.0,0.00022172,2]
[311743207,1705372247722,-500.0,0.00022172,2]
[311743208,1705372247732,-500.0,0.00022172,2]
[311743209,1705372247742,-500.0,0.00022172,2]
[311743210,1705372247751,-500.0,0.00022172,2]
[311743211,1705372247760,-500.0,0.00022172,2]
[311743212,1705372247769,-500.0,0.00022172,2]
[311743213,1705372247779,-539.28,0.00022172,2]
[311743214,1705372247788,-500.0,0.00022172,2]
[311743215,1705372247797,-500.0,0.00022172,2]
[311743216,1705372247807,-184.27920278,0.00022172,2]
[311743217,1705372247816,-510.31,0.00022172,2]
[311743218,1705372247825,-500.0,0.00022172,2]
[311743219,1705372247834,-500.0,0.00022172,2]
[311743220,1705372247844,-500.0,0.00022172,2]
[311743221,1705372247853,-555.67,0.00022172,2]
[311743222,1705372247862,-500.0,0.00022172,2]
[311743223,1705372247871,-613.81100662,0.00022172,2]
[311743224,1705372247880,-500.0,0.00022172,2]
[311743225,1705372247890,-500.0,0.00022172,2]
[311743226,1705372247899,-524.55,0.00022172,2]
[311743227,1705372247908,-500.0,0.00022172,2]
[311743228,1705372247918,-500.0,0.00022172,2]
[311743229,1705372247927,-500.0,0.00022172,2]
[311743230,1705372247936,-659.2,0.00022172,2]
[311743231,1705372247945,-986.54,0.00022172,2]
[311743232,1705372247955,-500.0,0.00022172,2]
[311743233,1705372247964,-692.31,0.00022172,2]
[311743234,1705372247973,-500.0,0.00022172,2]
[311743235,1705372247982,-626.09,0.00022172,2]
[311743236,1705372247992,-291.52934361,0.00022172,2]
[311743237,1705372248001,-526.03,0.00022172,2]
[311743238,1705372248011,-500.0,0.00022172,2]
[311743239,1705372248020,-329.76417645,0.00022172,2]
[311743240,1705372248030,-500.0,0.00022172,2]
[311743241,1705372248039,-507.69,0.00022172,2]
[311743242,1705372248048,-500.0,0.00022172,2]
[311743243,1705372248058,-500.0,0.00022172,2]
[311743244,1705372248067,-500.0,0.00022172,2]
[311743245,1705372248077,-500.0,0.00022172,2]
[311743246,1705372248086,-500.0,0.00022172,2]
[311743247,1705372248095,-560.26,0.00022172,2]
[311743248,1705372248105,-500.0,0.00022172,2]
[311743249,1705372248114,-500.0,0.00022172,2]
[311743250,1705372248123,-500.0,0.00022172,2]
[311743251,1705372248132,-500.0,0.00022172,2]
[311743252,1705372248141,-500.0,0.00022172,2]
[311743253,1705372248150,-500.0,0.00022172,2]
[311743254,1705372248160,-500.0,0.00022172,2]
[311743255,1705372248169,-500.0,0.00022172,2]
[311743256,1705372248183,-500.0,0.00022172,2]
[311743257,1705372248193,-500.0,0.00022172,2]
[311743258,1705372248202,-500.0,0.00022172,2]
[311743259,1705372248212,-500.0,0.00022172,2]
[311743260,1705372248223,-500.0,0.00022172,2]
[311743261,1705372248232,-500.0,0.00022172,2]
[311743262,1705372248242,-500.0,0.00022172,2]
[311743263,1705372248252,-528.33,0.00022172,2]
[311743264,1705372248261,-1170.45,0.00022172,2]
[311743265,1705372248271,-500.0,0.00022172,2]
[311743266,1705372248281,-235.19570936,0.00022172,2]
[311743267,1705372248290,-500.0,0.00022172,2]
[311743268,1705372248299,-500.0,0.00022172,2]
[311743269,1705372248309,-500.0,0.00022172,2]
[311743270,1705372248318,-281.75809235,0.00022172,2]
[311743271,1705372248328,-500.0,0.00022172,2]
[311743272,1705372248337,-500.0,0.00022172,2]
[311743273,1705372248346,-500.0,0.00022172,2]
[311743274,1705372248356,-500.0,0.00022172,2]
[311743275,1705372248364,-500.0,0.00022172,2]
[311743276,1705372248374,-500.0,0.00022172,2]
[311743277,1705372248383,-500.0,0.00022172,2]
[311743278,1705372248393,-500.0,0.00022172,2]
[311743279,1705372248402,-500.0,0.00022172,2]
[311743280,1705372248410,-500.0,0.00022172,2]
[311743281,1705372248419,-500.0,0.00022172,2]
[311743282,1705372248428,-621.91,0.00022172,2]
[311743283,1705372248438,-500.0,0.00022172,2]
[311743284,1705372248447,-500.0,0.00022172,2]
[311743285,1705372248456,-500.0,0.00022172,2]
[311743286,1705372248466,-500.0,0.00022172,2]
[311743287,1705372248475,-500.0,0.00022172,2]
[311743288,1705372248483,-551.24,0.00022172,2]
[311743289,1705372248492,-500.0,0.00022172,2]
[311743290,1705372248501,-500.0,0.00022172,2]
[311743291,1705372248510,-500.0,0.00022172,2]
[311743292,1705372248519,-500.0,0.00022172,2]
[311743293,1705372248528,-500.0,0.00022172,2]
[311743294,1705372248537,-500.0,0.00022172,2]
[311743295,1705372248547,-500.0,0.00022172,2]
[311743296,1705372248557,-500.0,0.00022172,2]
[311743297,1705372248566,-500.0,0.00022172,2]
[311743298,1705372248575,-500.0,0.00022172,2]
[311743299,1705372248584,-500.0,0.00022172,2]
[311743300,1705372248594,-500.0,0.00022172,2]
[311743301,1705372248603,-631.47,0.00022172,2]
[311743302,1705372248614,-500.0,0.00022172,2]
[311743303,1705372248623,-240.50986537,0.00022172,2]
[311743304,1705372248633,-500.0,0.00022172,2]
[311743305,1705372248642,-500.0,0.00022172,2]
[311743306,1705372248651,-500.0,0.00022172,2]
[311743307,1705372248660,-500.0,0.00022172,2]
[311743308,1705372248669,-500.0,0.00022172,2]
[311743309,1705372248679,-515.71,0.00022172,2]
[311743310,1705372248688,-519.59,0.00022172,2]
[311743311,1705372248697,-500.0,0.00022172,2]
[311743312,1705372248706,-500.0,0.00022172,2]
[311743313,1705372248714,-500.0,0.00022172,2]
[311743314,1705372248723,-500.0,0.00022172,2]
[311743315,1705372248732,-500.0,0.00022172,2]
[311743316,1705372248742,-245.28486021,0.00022172,2]
[311743317,1705372248751,-691.42,0.00022172,2]
[311743318,1705372248760,-508.50607756,0.00022172,2]
[311743319,1705372248769,-500.0,0.00022172,2]
[311743320,1705372248778,-500.19741746,0.00022172,2]
[311743321,1705372248787,-508.18886564,0.00022172,2]
[311743322,1705372248796,-500.0,0.00022172,2]
[311743323,1705372248805,-498.3920934,0.00022172,2]
[311743324,1705372248814,-710.38,0.00022172,2]
[311743325,1705372248823,-574.59,0.00022172,2]
[311743326,1705372248832,-500.0,0.00022172,2]
[311743327,1705372248841,-503.41639302,0.00022172,2]
[311743328,1705372248850,-539.46,0.00022172,2]
[311743329,1705372248859,-500.0,0.00022172,2]
[311743330,1705372248868,-843.27,0.00022172,2]
[311743331,1705372248877,-500.0,0.00022172,2]
[311743332,1705372248886,-543.53172852,0.00022172,2]
[311743333,1705372248895,-500.0,0.00022172,2]
[311743334,1705372248904,-559.66,0.00022172,2]
[311743335,1705372248913,-504.54,0.00022172,2]
[311743336,1705372248922,-500.0,0.00022172,2]
[311743337,1705372248930,-500.0,0.00022172,2]
[311743338,1705372248940,-500.0,0.00022172,2]
[311743339,1705372248949,-500.0,0.00022172,2]
[311743340,1705372248958,-4078.76,0.00022172,2]
[311743341,1705372248967,-505.72755829,0.00022172,2]
[311743342,1705372248977,-500.0,0.00022172,2]
[311743343,1705372248987,-555.26,0.00022172,2]
[311743344,1705372248996,-3151.41,0.00022172,2]
[311743345,1705372249005,-500.0,0.00022172,2]
[311743346,1705372249015,-500.0,0.00022172,2]
[311743347,1705372249024,-500.0,0.00022172,2]
[311743348,1705372249034,-500.0,0.00022172,2]
[311743349,1705372249043,-408.86647165,0.00022172,2]
[311743350,1705372249054,-500.0,0.00022172,2]
[311743351,1705372249063,-1933.6,0.00022172,2]
[311743352,1705372249072,-560.96,0.00022172,2]
[311743353,1705372249081,-500.18,0.00022172,2]
[311743354,1705372249091,-500.0,0.00022172,2]
[311743355,1705372249100,-500.0,0.00022172,2]
[311743356,1705372249109,-721.95,0.00022172,2]
[311743357,1705372249118,-500.0,0.00022172,2]
[311743358,1705372249127,-500.0,0.00022172,2]
[311743359,1705372249137,-2163.44,0.00022172,2]
[311743360,1705372249147,-626.58049625,0.00022172,2]
[311743361,1705372249156,-645.57,0.00022172,2]
[311743362,1705372249166,-6040.22,0.00022172,2]
[311743363,1705372249175,-500.0,0.00022172,2]
[311743364,1705372249184,-500.0,0.00022172,2]
[311743365,1705372249194,-500.0,0.00022172,2]
[311743366,1705372249203,-500.0,0.00022172,2]
[311743367,1705372249214,-500.0,0.00022172,2]
[311743368,1705372249223,-500.0,0.00022172,2]
[311743369,1705372249232,-500.0,0.00022172,2]
[311743370,1705372249241,-1082.4,0.00022172,2]
[311743371,1705372249252,-664.46,0.00022172,2]
[311743372,1705372249261,-522.22,0.00022172,2]
[311743373,1705372249270,-654.97,0.00022172,2]
[311743374,1705372249279,-500.0,0.00022172,2]
[311743375,1705372249288,-500.0,0.00022172,2]
[311743376,1705372249298,-538.62,0.00022172,2]
[311743377,1705372249307,-226.02456437,0.00022172,2]
[311743378,1705372249316,-507.97249814,0.00022172,2]
[311743379,1705372249325,-543.69,0.00022172,2]
[311743380,1705372249335,-500.0,0.00022172,2]
[311743381,1705372249345,-624.05,0.00022172,2]
[311743382,1705372249354,-500.0,0.00022172,2]
[311743383,1705372249363,-500.0,0.00022172,2]
[311743384,1705372249372,-521.75,0.00022172,2]
[311743385,1705372249381,-500.0,0.00022172,2]
[311743386,1705372249390,-1211.45,0.00022172,2]
[311743387,1705372249400,-500.0,0.00022172,2]
[311743388,1705372249409,-645.32,0.00022172,2]
[311743389,1705372249418,-500.0,0.00022172,2]
[311743390,1705372249428,-946.14,0.00022172,2]
[311743391,1705372249437,-500.0,0.00022172,2]
[311743392,1705372249446,-1194.43,0.00022172,2]
[311743393,1705372249455,-500.0,0.00022172,2]
[311743394,1705372249464,-500.0,0.00022172,2]
[311743395,1705372249475,-500.0,0.00022172,2]
[311743396,1705372249484,-1538.7,0.00022172,2]
[311743397,1705372249494,-1499.01,0.00022172,2]
[311743398,1705372249503,-500.0,0.00022172,2]
[311743399,1705372249512,-500.0,0.00022172,2]
[311743400,1705372249520,-500.0,0.00022172,2]
[311743401,1705372249529,-500.0,0.00022172,2]
[311743402,1705372249538,-3668.65,0.00022172,2]
[311743403,1705372249548,-500.0,0.00022172,2]
[311743404,1705372249558,-198.51052625,0.00022172,2]
[311743405,1705372249567,-500.0,0.00022172,2]
[311743406,1705372249576,-500.0,0.00022172,2]
[311743407,1705372249585,-3012.24,0.00022172,2]
[311743408,1705372249595,-500.0,0.00022172,2]
[311743409,1705372249603,-500.0,0.00022172,2]
[311743410,1705372249613,-500.0,0.00022172,2]
[311743411,1705372249623,-500.0,0.00022172,2]
[311743412,1705372249632,-500.0,0.00022172,2]
[311743413,1705372249641,-500.0,0.00022172,2]
[311743414,1705372249650,-1619.48,0.00022172,2]
[311743415,1705372249659,-907.03,0.00022172,2]
[311743416,1705372249669,-651.09,0.00022172,2]
[311743417,1705372249678,-500.0,0.00022172,2]
[311743418,1705372249688,-500.0,0.00022172,2]
[311743419,1705372249698,-500.0,0.00022172,2]
[311743420,1705372249707,-500.0,0.00022172,2]
[311743421,1705372249717,-628.35,0.00022172,2]
[311743422,1705372249727,-500.0,0.00022172,2]
[311743423,1705372249737,-2360.28,0.00022172,2]
[311743424,1705372249747,-500.0,0.00022172,2]
[311743425,1705372249756,-1086.89,0.00022172,2]
[311743426,1705372249766,-500.0,0.00022172,2]
[311743427,1705372249775,-500.0,0.00022172,2]
[311743428,1705372249784,-590.81,0.00022172,2]
[311743429,1705372249794,-1479.52,0.00022172,2]
[311743430,1705372249803,-1526.68,0.00022172,2]
[311743431,1705372249812,-500.0,0.00022172,2]
[311743432,1705372249821,-580.20067269,0.00022172,2]
[311743433,1705372249830,-501.89,0.00022172,2]
[311743434,1705372249839,-3991.49,0.00022172,2]
[311743435,1705372249848,-500.0,0.00022172,2]
[311743436,1705372249858,-500.0,0.00022172,2]
[311743437,1705372249867,-500.0,0.00022172,2]
[311743438,1705372249876,-588.1,0.00022172,2]
[311743439,1705372249885,-1040.18,0.00022172,2]
[311743440,1705372249894,-838.3,0.00022172,2]
[311743441,1705372249904,-623.86,0.00022172,2]
[311743442,1705372249913,-2613.76,0.00022172,2]
[311743443,1705372249922,-459.60313319,0.00022172,2]
[311743444,1705372249931,-706.89,0.00022172,2]
[311743445,1705372249941,-500.0,0.00022172,2]
[311743446,1705372249950,-5352.82392086,0.00022173,2]
[311743447,1705372249959,-123645.20024619,0.00022173,2]
[311743448,1705372250546,-265.84634938,0.00022173,2]
[311743449,1705372250572,-500.0,0.00022171,2]
[311743450,1705372250582,-0.22797739,0.00022173,2]
[311743451,1705372250749,250.0,0.00021435,2]
[311743452,1705372251969,486.9737209,0.00022074,2]
[311743453,1705372272180,289.31721187,0.00021174,2]
[311743457,1705372293828,250.0,0.00021918,2]
[311743458,1705372308493,3601.9068,0.00022073,2]
[311743459,1705372312875,500.0,0.00020301,2]
[311743460,1705372313516,500.0,0.00020513,2]
[311743461,1705372314495,500.0,0.00020725,2]
[311743462,1705372314655,500.0,0.00020937,2]
[311743463,1705372314895,500.0,0.00021148,2]
[311743464,1705372315186,500.0,0.0002136,2]
[311743465,1705372315493,500.0,0.00021572,2]
[311743466,1705372315812,500.0,0.00021784,2]
[311743467,1705372316059,500.0,0.00021996,2]
[311743471,1705372344832,36662.4153,0.00022063,2]
[311743472,1705372363566,165.43,0.00021413,2]
[311743474,1705372377183,630.12,0.00021383,2]
[311743476,1705372390021,227.7910841,0.00022074,2]
[311743477,1705372406285,25947.07373741,0.00022074,2]
[311743478,1705372414279,914.0,0.00021951,2]
[311743479,1705372435279,324.64914728,0.00022074,2]
[311743480,1705372476304,158.29,0.00021438,2]
[311743481,1705372531354,504.41155562,0.00022066,2]
[311743483,1705372537665,159.88,0.00021477,2]
[311743484,1705372559260,36403.999999,0.0002199,2]
[311743485,1705372566285,451.33,0.00021275,2]
[311743489,1705372600579,23900.0,0.00021249,2]
[311743490,1705372609291,154.18,0.00021249,2]
[311743491,1705372628792,163.36645698,0.00022063,2]
[311743494,1705372633118,289.42,0.00021249,2]
[311743495,1705372689856,276.43,0.00019346,2]
[311743496,1705372690062,276.43,0.0002161,2]
[311743497,1705372781974,216.43276484,0.00022074,2]
[311743498,1705372792607,250.0,0.00021918,2]
[311743499,1705372843731,3125.43380734,0.00021053,2]
[311743500,1705372848031,1544.44853215,0.00022074,2]
[311743501,1705372860230,690.97479925,0.00021053,2]
[311743502,1705372871807,495.9,0.00021189,2]
[311743503,1705372881985,150.0,0.00021173,2]
[311743504,1705372883281,150.0,0.00021721,2]
[311743505,1705372950302,150.0,0.00021173,2]
[311743506,1705372952003,150.0,0.00021721,2]
[311743507,1705372961998,164.25,0.00021388,2]
[311743508,1705372994226,1279.16166936,0.00021661,2]
[311743509,1705373001272,152.92,0.00021343,2]
[311743510,1705373001513,152.92,0.00021899,2]
[311743511,1705373007947,488.93,0.00021224,2]
[311743512,1705373018463,186.87720971,0.00021173,2]
[311743513,1705373038124,827.32759785,0.00022045,2]
[311743514,1705373059741,441.36011115,0.00022065,2]
[311743515,1705373102451,154.77,0.00021181,2]
[311743516,1705373102668,154.77,0.00021322,2]
[311743517,1705373102883,154.77,0.00021463,2]
[311743518,1705373103299,154.77,0.00021604,2]
[311743519,1705373103522,154.77,0.00021746,2]
[311743520,1705373103931,154.77,0.00021887,2]
[311743521,1705373104164,154.77,0.00022028,2]
[311743522,1705373114940,221.40116,0.000221,3]
[311743523,1705373117740,5000.0,0.000221,2]
[311743524,1705373121306,220.40116,0.000221,3]
[311743528,1705373150182,281.92,0.00019275,2]
[311743529,1705373150260,281.92,0.00021539,2]
[311743530,1705373151829,250.0,0.00022065,2]
[311743531,1705373159653,8183.93,0.00021193,2]
[311743532,1705373193777,418.5,0.00021197,2]
[311743533,1705373202044,1921.93,0.00021189,2]
[311743537,1705373279847,250.0,0.00021918,2]
[311743538,1705373293208,250.0,0.00021173,2]
[311743539,1705373294510,250.0,0.00021447,2]
[311743540,1705373295798,253.22493294,0.00021721,2]
[311743541,1705373296053,250.0,0.00022065,2]
[311743542,1705373344899,153.81359522,0.00021172,2]
[311743543,1705373358034,603.28,0.00021189,2]
[311743559,1705373431645,-853.71847551,0.00022124,2]
[311743560,1705373431657,-146.28152449,0.00022124,2]
[311743561,1705373431666,-215.50107807,0.00022125,2]
[311743562,1705373431676,-490.80952942,0.00022125,2]
[311743563,1705373431688,-34.2173192,0.00022125,2]
[311743564,1705373431697,-350.47241941,0.00022144,2]
[311743565,1705373431706,-150.0,0.00022144,2]
[311743566,1705373431716,-43.84249973,0.00022145,2]
[311743567,1705373431737,-21350.0,0.00022145,2]
[311743568,1705373431762,-345.85363924,0.00022145,2]
[311743569,1705373431816,-410.69107254,0.00022145,2]
[311743570,1705373431827,-7622.11649557,0.00022145,2]
[311743571,1705373431836,-766.13795636,0.00022161,2]
[311743572,1705373431845,-245.65871185,0.00022161,2]
[311743573,1705373431854,-7681.62552894,0.00022162,2]
[311743574,1705373431865,-745.35826249,0.00022162,2]
[311743575,1705373431877,-455.94522447,0.00022162,2]
[311743576,1705373431888,-334.79878095,0.00022162,2]
[311743577,1705373431899,-999.87426,0.00022162,2]
[311743578,1705373431910,-301.52504693,0.00022162,2]
[311743579,1705373431922,-7639.89741592,0.00022162,2]
[311743580,1705373431932,-546.04,0.00022163,2]
[311743582,1705373431940,-500.0,0.00022163,2]
[311743584,1705373431950,-774.78,0.00022163,2]
[311743586,1705373431959,-500.0,0.00022163,2]
[311743588,1705373431968,-500.0,0.00022163,2]
[311743590,1705373431977,-514.27286461,0.00022163,2]
[311743593,1705373431990,-617.50713539,0.00022163,2]
[311743595,1705373432000,-317.80445263,0.00022163,2]
[311743598,1705373432021,-301.53554737,0.00022163,2]
[311743600,1705373432030,-1019.59,0.00022163,2]
[311743602,1705373432040,-1036.92808417,0.00022163,2]
[311743604,1705373432051,-153.53191583,0.00022163,2]
[311743606,1705373432060,-625.15,0.00022163,2]
[311743608,1705373432069,-652.35,0.00022163,2]
[311743610,1705373432079,-667.92,0.00022163,2]
[311743611,1705373432088,-500.0,0.00022163,2]
[311743612,1705373432097,-899.53,0.00022163,2]
[311743613,1705373432106,-1089.31,0.00022163,2]
[311743614,1705373432116,-810.43,0.00022163,2]
[311743615,1705373432125,-1184.32,0.00022163,2]
[311743616,1705373432134,-1595.83,0.00022163,2]
[311743617,1705373432144,-766.89,0.00022163,2]
[311743618,1705373432153,-628.99,0.00022163,2]
[311743619,1705373432162,-627.11,0.00022163,2]
[311743620,1705373432171,-1195.67,0.00022163,2]
[311743621,1705373432180,-763.43,0.00022163,2]
[311743622,1705373432190,-1020.07,0.00022163,2]
[311743623,1705373432199,-712.77,0.00022163,2]
[311743624,1705373432208,-2855.8,0.00022163,2]
[311743625,1705373432218,-965.43,0.00022163,2]
[311743626,1705373432227,-2822.73,0.00022163,2]
[311743627,1705373432236,-500.0,0.00022163,2]
[311743628,1705373432246,-500.0,0.00022163,2]
[311743629,1705373432254,-674.62,0.00022163,2]
[311743630,1705373432263,-500.0,0.00022163,2]
[311743631,1705373432273,-1119.5,0.00022163,2]
[311743632,1705373432282,-940.87,0.00022163,2]
[311743633,1705373432292,-1089.72,0.00022163,2]
[311743634,1705373432301,-763.15,0.00022163,2]
[311743635,1705373432310,-500.0,0.00022163,2]
[311743636,1705373432319,-812.61,0.00022163,2]
[311743637,1705373432329,-698.66,0.00022163,2]
[311743638,1705373432338,-1025.28,0.00022163,2]
[311743639,1705373432347,-937.45,0.00022163,2]
[311743640,1705373432356,-640.99,0.00022163,2]
[311743641,1705373432366,-511.92120446,0.00022163,2]
[311743642,1705373432375,-578.25,0.00022163,2]
[311743643,1705373432384,-655.29,0.00022163,2]
[311743644,1705373432393,-1024.38,0.00022163,2]
[311743645,1705373432403,-1111.08,0.00022163,2]
[311743646,1705373432412,-903.21,0.00022163,2]
[311743647,1705373432422,-940.89,0.00022163,2]
[311743648,1705373432431,-811.79,0.00022163,2]
[311743649,1705373432442,-731.94,0.00022163,2]
[311743650,1705373432451,-608.41,0.00022163,2]
[311743651,1705373432461,-500.0,0.00022163,2]
[311743652,1705373432471,-758.21,0.00022163,2]
[311743653,1705373432480,-500.0,0.00022163,2]
[311743654,1705373432490,-771.78,0.00022163,2]
[311743655,1705373432501,-500.0,0.00022163,2]
[311743656,1705373432511,-651.41,0.00022163,2]
[311743657,1705373432521,-982.42,0.00022163,2]
[311743658,1705373432532,-586.23,0.00022163,2]
[311743659,1705373432543,-755.06,0.00022163,2]
[311743660,1705373432552,-2464.34615035,0.00022163,2]
[311743661,1705373432565,-300.96616691,0.00022163,2]
[311743662,1705373434027,161.52,0.00021509,2]
[311743668,1705373437620,-117.65768274,0.00022163,2]
[311743669,1705373437630,-871.27,0.00022163,2]
[311743670,1705373437639,-500.0,0.00022163,2]
[311743671,1705373437661,-514.28,0.00022163,2]
[311743672,1705373437670,-1811.53,0.00022163,2]
[311743673,1705373437680,-581.33,0.00022163,2]
[311743674,1705373437690,-500.0,0.00022163,2]
[311743675,1705373437699,-500.0,0.00022163,2]
[311743676,1705373437709,-500.0,0.00022163,2]
[311743677,1705373437718,-1492.83,0.00022163,2]
[311743678,1705373437728,-604.35,0.00022163,2]
[311743679,1705373437738,-902.40381863,0.00022163,2]
[311743680,1705373437751,-273.84618137,0.00022163,2]
[311743681,1705373437761,-992.2,0.00022163,2]
[311743682,1705373437770,-669.0990568,0.00022163,2]
[311743683,1705373437806,-1024.39740029,0.00022163,2]
[311743684,1705373437818,-10284.50354291,0.00022163,2]
[311743685,1705373437829,-500.0,0.00022163,2]
[311743686,1705373437839,-608.76,0.00022163,2]
[311743687,1705373437849,-1149.78,0.00022163,2]
[311743688,1705373437858,-1064.51,0.00022163,2]
[311743689,1705373437868,-2518.05,0.00022163,2]
[311743690,1705373437877,-1044.34,0.00022163,2]
[311743691,1705373437887,-500.0,0.00022163,2]
[311743692,1705373437897,-905.47,0.00022163,2]
[311743693,1705373437907,-650.75,0.00022163,2]
[311743694,1705373437917,-1174.15,0.00022163,2]
[311743695,1705373437927,-1357.03,0.00022163,2]
[311743696,1705373437937,-1486.38,0.00022163,2]
[311743697,1705373437946,-1259.67,0.00022163,2]
[311743698,1705373437956,-778.29,0.00022163,2]
[311743699,1705373437966,-1214.25,0.00022163,2]
[311743700,1705373437975,-862.62,0.00022163,2]
[311743701,1705373437985,-500.0,0.00022163,2]
[311743702,1705373437995,-1391.43,0.00022163,2]
[311743703,1705373438004,-591.97,0.00022163,2]
[311743704,1705373438014,-166.08239927,0.00022163,2]
[311743705,1705373438023,-1081.75465682,0.00022163,2]
[311743706,1705373438033,-439.21,0.00022163,2]
[311743707,1705373438042,-499.99,0.00022163,2]
[311743708,1705373438052,-386.22246956,0.00022163,2]
[311743709,1705373438065,-613.77753044,0.00022163,2]
[311743710,1705373438074,-1000.0,0.00022163,2]
[311743711,1705373438084,-413.56129093,0.00022163,2]
[311743712,1705373438124,-417.121379,0.00022163,2]